Cogmind - Beta 16 @@@ ROGUE MODE // 2025.10.26 @ 13:03:33 Player: nowtakenusername Result: Destroyed by 26-K7G(j) with Overtuned Pulse Rifle Performance ------------- Evolutions (0) 0 Regions Visited (3) 600 Robots Destroyed (27) 135 Value Destroyed (753) 753 Prototype IDs (6) 120 Alien Tech Used (0) 0 Bonus (800) 800 TOTAL SCORE: 2408 Bonus ------- Registered with UFD 300 Met Optimus in HQ 500 Cogmind --------- Core Integrity 0/250 Matter 116/300 Energy 100/100 System Corruption 5% Temperature Hot (210) Movement Treading (140) Location -9/Scraptown Parts ------- > --- POWER (1) -------- (None) > --- PROPULSION (2) --- Overtuned Treads Overtuned Treads > --- UTILITY (2) ------ Makeshift Light Armor Plating > --- WEAPON (2) ------- Slug Cannon > --- INVENTORY (5) ---- Scrap Suit Subdweller Shrapnel Launcher Peak State ------------ > --- POWER ------------ Light Nuclear Core > --- PROPULSION ------- Overtuned Treads Overtuned Treads > --- UTILITY ---------- Makeshift Light Armor Plating > --- WEAPON ----------- Slug Cannon > --- INVENTORY -------- Scrap Suit Subdweller Shrapnel Launcher [Rating: 18] Favorites ----------- Power Ion Engine Engine Ion Engine Power Core Light Nuclear Core Propulsion Aluminum Leg Treads Light Treads Leg Aluminum Leg Utility Medium Storage Unit Device Sensor Array Storage Medium Storage Unit Protection Makeshift Light Armor Plating Weapon Assault Rifle Energy Gun Particle Gun Ballistic Gun Assault Rifle Ballistic Cannon Light Cannon Build | -11 -10 -10 -9 ------- Run | Yrd Mat Sub Scr Slots Evolved . | . . . . Power . | . . . . Propulsion . | . . . . Utility . | . . . . Weapon . | . . . . Parts Attached 33 | 9 8 10 6 Power 7 | 1 3 2 1 Engine 6 | 1 3 2 . Core 1 | . . . 1 Reactor . | . . . . Propulsion 10 | 4 2 2 2 Treads 4 | 2 . . 2 Leg 6 | 2 2 2 . Wheel . | . . . . Hover . | . . . . Flight . | . . . . Utility 6 | 2 2 1 1 Device 3 | 1 1 1 . Storage 2 | 1 1 . . Processor . | . . . . Hackware . | . . . . Protection 1 | . . . 1 Artifact . | . . . . Weapon 10 | 2 1 5 2 Energy Gun 2 | 1 1 . . Energy Cannon . | . . . . Ballistic Gun 4 | 1 . 3 . Ballistic Cannon 4 | . . 2 2 Launcher . | . . . . Special Weapon . | . . . . Impact Weapon . | . . . . Slashing Weapon . | . . . . Piercing Weapon . | . . . . Special Melee Weapon . | . . . . Unidentified Prototypes . | . . . . Corrupted Parts 2 | . . . 2 System Corruption 5 | . . . 5 Parts Lost 9 | . 2 4 3 Power 3 | . 1 1 1 Propulsion 4 | . 1 2 1 Utility . | . . . . Weapon 2 | . . 1 1 Highest Loss Streak 3 | . 1 2 3 To Critical Strikes . | . . . . Average Backups 8 | 4 8 9 9 Power 1 | . 1 1 . Propulsion 2 | 2 3 1 . Utility 3 | . 3 4 2 Weapon 2 | . . 2 4 Tool/Special . | . . . . Unused Backups 11 | . 4 2 5 Power . | . . . . Propulsion 1 | . 1 . . Utility 7 | . 2 1 4 Weapon 3 | . 1 1 1 Tool/Special . | . . . . Average Slot Usage (%) 90 | . 98 91 70 Engine 10 | . 13 6 13 Treads 3 | . 8 . 1 Leg 23 | . 19 27 26 Device 13 | . 14 14 13 Storage 13 | . 14 14 13 Energy Gun 8 | . 13 8 . Ballistic Gun 11 | . 14 14 . Ballistic Cannon 2 | . . 5 . Peak Build Rating 18 | 7 9 14 18 Average Rating 8 | 5 8 9 10 On Entrance 7 | . 7 9 14 Avg Prop Armor Cover (%) . | . . . . Naked Turns . | . . . . Heaviest Build 23 | 15 21 23 23 Greatest Support 40 | 40 40 30 36 Greatest Overweight (x) 3 | 3 1 1 . Average Overweight (x) . | . . . . Largest Inventory Capacity 10 | 8 10 10 10 Average Capacity 9 | 7 9 10 9 Most Carried 10 | 5 10 10 10 Average Carried 9 | 4 8 9 9 Final Capacity 10 | 8 10 10 5 Final Carried 10 | 5 10 10 3 Class Distribution -------------------- 77% | Mutant 22% | Scavenger-Mutant Dominant Class ---------------- Scavenger-Mutant | -10/Materials Mutant | -10/Subcaves Mutant | -9/Scraptown Resources | -11 -10 -10 -9 ----------- Run | Yrd Mat Sub Scr Matter Collected 931 | 217 358 204 152 Remotely . | . . . . Salvage Created 780 | 27 552 154 47 Parts 55 | 3 38 10 4 Haulers Intercepted . | . . . . Recyclers Shooed 1 | . 1 . . Parts Field Recycled . | . . . . Retrieved Matter . | . . . . Parts Self-Destructed 3 | . . 3 . Prevented . | . . . . Parts Restored . | . . . . Kills | -11 -10 -10 -9 ------- Run | Yrd Mat Sub Scr Combat Hostiles Destroyed 16 | . 9 5 2 Guns 12 | . 9 3 . Cannons 4 | . . 2 2 Classes Destroyed 9 | 1 5 1 2 Worker 1 | . 1 . . Builder 1 | . 1 . . Tunneler 3 | 2 1 . . Operator 3 | . 3 . . Watcher 3 | . 3 . . Grunt 9 | . 9 . . Subdweller 5 | . . 5 . Ranger 1 | . . . 1 Guru 1 | . . . 1 Best Kill Streak 5 | 2 5 2 2 Combat Bots Only 4 | . 4 2 2 Max Kills in Single Turn 1 | 1 1 1 1 Gunslinging . | . . . . Exploded . | . . . . Melee . | . . . . Uniques/NPCs Destroyed . | . . . . Combat | -11 -10 -10 -9 -------- Run | Yrd Mat Sub Scr Hostile Shots Fired 160 | . 61 36 63 Missed 48 | . 17 12 19 Hits 112 | . 44 24 44 Projectile 112 | . 44 24 44 Critical Strikes 6 | . 3 . 3 Damage Taken 1790 | . 585 500 705 Core 266 | . 79 82 105 Absorbed by Shields . | . . . . Regen/Repaired (Parts) 2 | . 2 . . Core Remaining (%) 100 | 100 . . . Volleys Fired 135 | 4 65 57 9 Largest 2 | 2 2 2 1 Hottest 90 | 70 85 90 40 Shots Fired 256 | 8 127 112 9 Gun 205 | 8 127 70 . Cannon 51 | . . 42 9 Launcher . | . . . . Special . | . . . . Kinetic 177 | 4 65 99 9 Thermal 79 | 4 62 13 . Explosive . | . . . . Electromagnetic . | . . . . Robot Hit Streak 18 | 3 8 18 3 Robot Miss Streak 4 | 2 4 2 3 Penetration Max . | . . . . Secondary Targets 1 | . 1 . . Max Gunslinging Chain 1 | . 1 . . Shots Hit Robots 124 | 5 74 41 4 Core Hits 47 | 2 31 10 4 Critical Kills . | . . . . Critical Parts Destroyed 2 | . 1 . 1 Critical Strikes 6 | 1 4 . 1 Burn 4 | 1 3 . . Destroy 2 | . 1 . 1 Melee Attacks . | . . . . Impact . | . . . . Slashing . | . . . . Piercing . | . . . . Sneak Attacks . | . . . . Combat Hostiles . | . . . . Follow-up Attacks . | . . . . Damage Inflicted 1658 | 73 1063 387 135 Guns 1310 | 56 1045 209 . Cannons 313 | . . 178 135 Explosions . | . . . . Melee . | . . . . Ramming 35 | 17 18 . . Kinetic 1026 | 31 519 341 135 Thermal 597 | 25 526 46 . Explosive . | . . . . Electromagnetic . | . . . . Impact . | . . . . Slashing . | . . . . Piercing . | . . . . Highest Corruption 5 | . . . 5 Average Corruption 4 | . . . 4 Corruption Purged . | . . . . Corruption Blocked . | . . . . Effects 1 | . . . 1 Data Loss (minor) 1 | . . . 1 Overload Shots . | . . . . Overflow Damage . | . . . . Projectiles . | . . . . Explosions . | . . . . Melee . | . . . . Knockbacks 5 | . . 2 3 Impact . | . . . . Kinetic 5 | . . 2 3 Secondary . | . . . . Self-Inflicted Damage . | . . . . Shots . | . . . . Rammed 10 | 8 2 . . Targets Rammed 13 | 10 3 . . Kicked 2 | 1 1 . . Crushed 1 | 1 . . . Highest Temperature 198 | 18 132 6 198 Average Temperature 47 | 8 47 6 96 Received Heat Transfer 854 | . 384 132 338 Siege Activations . | . . . . Martial Activations . | . . . . Shielding Activations . | . . . . Robots Disrupted . | . . . . Combat Hostiles . | . . . . Robots Corrupted . | . . . . Combat Hostiles . | . . . . Parts Fried . | . . . . Impact Corruptions . | . . . . Robots Melted . | . . . . Combat Hostiles . | . . . . Parts Melted 3 | . 3 . . Heat Transferred 1887 | 148 1628 111 . Parts Sabotaged . | . . . . Parts Stolen . | . . . . Parts Stripped . | . . . . Power Chain Reactions . | . . . . Alert | -11 -10 -10 -9 ------- Run | Yrd Mat Sub Scr Maximum Alert Level . | . . . . Low Security (%) 100 | 100 100 . . Level 1 . | . . . . Level 2 . | . . . . Level 3 . | . . . . Level 4 . | . . . . Level 5 . | . . . . High Security . | . . . . Max Security . | . . . . Peak Influence 109 | 5 109 . . Initial . | . . . . Average 16 | . 19 . . Influence Increases 298 | 10 288 . . Destroy 0b10 Robot/C 180 | . 180 . . Destroy 0b10 Robot/NC 55 | 10 45 . . Destroy Leader 56 | . 56 . . Successful Hack 7 | . 7 . . Influence Decreases 298 | 10 288 . . Time Decay 288 | 10 278 . . Lost Part 10 | . 10 . . Squads Dispatched 3 | . 3 . . Investigation . | . . . . Extermination . | . . . . Reinforcement 3 | . 3 . . Assault . | . . . . Garrison . | . . . . Intercept . | . . . . Searches Triggered . | . . . . Construction Impeded . | . . . . Haulers Reinforced . | . . . . Active Scanning Responses . | . . . . Cargo Convoy Interrupts . | . . . . Stealth | -11 -10 -10 -9 --------- Run | Yrd Mat Sub Scr Distress Signals 1 | . 1 . . Communications Jammed . | . . . . Distress Signals . | . . . . Times Spotted 36 | . 22 5 9 Peak Tracking Total 5 | . 5 2 4 Tactical Retreats . | . . . . Traps | -11 -10 -10 -9 ------- Run | Yrd Mat Sub Scr Traps Triggered 3 | . 3 . . Indirectly . | . . . . Trap Hack Attempts . | . . . . Triggered . | . . . . Disarmed . | . . . . Reprogrammed . | . . . . Reused . | . . . . Traps Extracted . | . . . . Installed . | . . . . Triggered . | . . . . Machines | -11 -10 -10 -9 ---------- Run | Yrd Mat Sub Scr Machines Disabled 1 | . . . 1 Max in Single Turn 1 | . . . 1 Machines Repaired . | . . . . Machines Dismantled . | . . . . Machines Sabotaged . | . . . . Overloaded Fab Kills . | . . . . Hacking | -11 -10 -10 -9 --------- Run | Yrd Mat Sub Scr Machines Accessed 11 | . 5 . 6 Terminals 3 | . 3 . . Fabricators . | . . . . Repair Stations 1 | . 1 . . Recycling Units 1 | . 1 . . Scanalyzers . | . . . . Garrison Access . | . . . . Total Hacks 46 | . 11 . 35 Successful 41 | . 6 . 35 Failed 5 | . 5 . . Catastrophic 2 | . 2 . . Database Lockouts . | . . . . Manual 5 | . 5 . . Terminals 6 | . 6 . . Fabricators . | . . . . Repair Stations 3 | . 3 . . Recycling Units 2 | . 2 . . Scanalyzers . | . . . . Garrison Access . | . . . . Terminal Hacks 37 | . 2 . 35 Record 28 | . . . 28 Part Schematic 1 | . 1 . . Robot Analysis 6 | . . . 6 Zone Layout 1 | . 1 . . Proto ID Catalog 1 | . . . 1 Fabricator Hacks . | . . . . Repair Station Hacks 2 | . 2 . . Scan Component 1 | . 1 . . Repair 1 | . 1 . . Recycling Unit Hacks 2 | . 2 . . Retrieve Components 2 | . 2 . . Scanalyzer . | . . . . Garrison Access Hacks . | . . . . Unauthorized Hacks . | . . . . Terminals . | . . . . Fabricators . | . . . . Repair Stations . | . . . . Recycling Units . | . . . . Scanalyzers . | . . . . Garrison Access . | . . . . Data Cores Recovered . | . . . . Used . | . . . . Hacking Detections 3 | . 3 . . Full Trace Events 1 | . 1 . . Feedback Events . | . . . . Feedback Blocked . | . . . . Robot Schematics Acquired . | . . . . Robots Built . | . . . . Authchips . | . . . . Time . | . . . . Total Robot Build Rating . | . . . . Part Schematics Acquired 1 | . 1 . . Parts Built . | . . . . Authchips . | . . . . Time . | . . . . Total Part Build Rating . | . . . . Part Studies Acquired . | . . . . Parts Repaired 1 | . 1 . . Time 38 | . 38 . . Parts Recycled . | . . . . Recycled Matter . | . . . . Retrieved Matter . | . . . . Retrieved Components 9 | . 9 . . Parts Scanalyzed . | . . . . Part Schematics Acquired . | . . . . Parts Damaged . | . . . . Bothacking | -11 -10 -10 -9 ------------ Run | Yrd Mat Sub Scr Used RIF Installer . | . . . . Robots Hacked . | . . . . Non-combat . | . . . . Combat . | . . . . Robot Hacks Applied . | . . . . Relay Couplers Released . | . . . . Fabnet Peak Effective % . | . . . . Robots Rewired . | . . . . Allies Hacked . | . . . . Hacks Repelled . | . . . . Allies | -11 -10 -10 -9 -------- Run | Yrd Mat Sub Scr Total Allies . | . . . . Largest Group . | . . . . Highest-Rated Group . | . . . . Highest-Rated Ally . | . . . . Total Orders . | . . . . Ally Attacks . | . . . . Total Damage . | . . . . Kills . | . . . . Allies Corrupted . | . . . . Allies Melted . | . . . . Intel | -11 -10 -10 -9 ------- Run | Yrd Mat Sub Scr Active Infowar (turns) 3549 | 44 1579 1201 725 Sensors 2052 | . 302 1025 725 Terrain 176 | . . 176 . Seismic 1321 | 44 1277 . . Robot Analysis Total 6 | . . . 6 Derelict Logs Recovered 1 | . . 1 . Drone Launches . | . . . . Drone Recoveries . | . . . . Exploration | -11 -10 -10 -9 ------------- Run | Yrd Mat Sub Scr Turns Passed 3823 | 279 1580 1201 763 Spaces Moved 2107 | 157 748 665 537 Core 18 | 18 . . . Treads 326 | 113 204 . 9 Legs 1763 | 26 544 665 528 Wheels . | . . . . Hover . | . . . . Flight . | . . . . Fastest Speed 50 | 50 120 120 120 Average Speed 147 | 149 175 129 130 Slowest Speed 200 | 200 190 190 140 Overloaded Moves . | . . . . Propulsion Burnouts . | . . . . Robots Hopped . | . . . . Potential Cave-ins . | . . . . Cave-ins Triggered . | . . . . Exploration Rate (%) 39 | 7 71 37 42 Regions Visited 3 Branch Regions 2 Pre-discovered Areas 1 | . . 1 . Known Exits Taken . | . . . . Unknown Exits Taken 3 | 1 1 1 . Scrap Searched 8 | . . 7 1 Spaces Dug . | . . . . Terrain Destroyed 2 | . . . 2 Melee . | . . . . Projectile 2 | . . . 2 AOE . | . . . . Terrain Rammed . | . . . . Walls Destroyed . | . . . . Machines Disabled . | . . . . Actions | -11 -10 -10 -9 --------- Run | Yrd Mat Sub Scr Total 2564 | 185 887 896 596 Wait 212 | . 33 147 32 Move 2104 | 156 747 664 537 Hop . | . . . . Pick Up 24 | 6 12 5 1 Fast Attach 21 | 6 8 4 3 Attach 9 | 1 1 3 4 Detach 3 | . . 1 2 Swap 14 | 2 6 5 1 Drop 26 | . 12 7 7 Fire 135 | 4 65 57 9 Melee . | . . . . Ram . | . . . . Kick 2 | 1 1 . . Crush 11 | 9 2 . . Escape Stasis . | . . . . Rewire 3 | . . 3 . Trap . | . . . . Miscellaneous . | . . . . Route ------- -11/Scrapyard -10/Materials (discovered 3 exits: [*Mat] / [*Min] / [*Sub]) -10/Subcaves -9/Scraptown History --------- Turn | Location | Event 30 | -11/Scrapyard | Discovered new exit (range 14) 280 | -11/Scrapyard | Entered Materials 300 | -10/Materials | Build established: Mutant 577 | -10/Materials | Repaired Hacking Suite 619 | -10/Materials | Discovered new exit (range 15) 921 | -10/Materials | Discovered new exit (range 6) 944 | -10/Materials | Discovered new exit (range 5) 1052 | -10/Materials | Build established: Scavenger-Mutant 1859 | -10/Materials | Build established: Mutant 1860 | -10/Materials | Entered Subcaves 1861 | -10/Subcaves | Approached by a straggling Scientist 2411 | -10/Subcaves | Learned location of Zion (-6) 2469 | -10/Subcaves | A swath of the cavern ceiling suddenly collapsed 2841 | -10/Subcaves | Core integrity fell below 50% 3038 | -10/Subcaves | Scientist uncovered a shortcut to Scraptown 3061 | -10/Subcaves | Entered Scraptown 3241 | -9/Scraptown | Visited UFD Registry 3245 | -9/Scraptown | Registered with UFD as "Slugslider" 3303 | -9/Scraptown | Visited Modified Component R&D 3355 | -9/Scraptown | Visited Science Guys 3410 | -9/Scraptown | Visited Analyses Database 3448 | -9/Scraptown | Visited Cartography Club 3527 | -9/Scraptown | Visited Science Testing Area 3576 | -9/Scraptown | Met Optimus 3576 | -9/Scraptown | Accepted into 0bPrime 3706 | -9/Scraptown | Visited Scrap Suit Storage 3749 | -9/Scraptown | Found Scrap Suit 3756 | -9/Scraptown | Civil war broke out across Scraptown 3795 | -9/Scraptown | Core integrity fell below 20% 3824 | -9/Scraptown | Destroyed by 26-K7G(j) with Overtuned Pulse Rifle Last Messages --------------- Microdissipator Network. 03809_ 26-K7G(j) knocked back. 03810_ Critical hit (Burn: +50). 03811_ 82-FBC(h) knocked back. 03811_ Lgt. Nuclear Core destroyed. 03813_ Slug penetrates Wall. 03813_ Penetrated by Bolt. 03815_ 82-FBC(h) knocked back. 03816_ Penetrated by Bolt. 03817_ K8-ZQ9(x): "I'm having second thoughts about this." 03817_ L9-H0H(p) suffers critical hit (Destroy). 03817_ Destroyed EM Pulse Gun. 03819_ Penetrated by Bolt. 03819_ 82-FBC(h) destroyed. 03821_ Slug penetrates L9-H0H(p). 03821_ L9-H0H(p) destroyed. 03822_ 26-K7G(j) cannibalizes Imp. Heat Sink to repair Mak. Microdissipator Network. 03823_ Critical hit (Burn: +50). Map ----- +----------------------------------------------------+ | "## #??????? | | "## #??????? | | #??????? | | """""""""""""""""""""""""" "## #??????? | | """""""""""""""""""""""""" "## #??????? | | ###### ################"" "## #??????? | | # ##????????#" %=! "###########??????? | | # X"#????????#" =!= "#????????????????? | | # "" "" ##????????#""[%! ""?? $ ??????????? | | # "" "" X"#??????###" !%= "?? #????????? | | # " " ######### #" ==[* "# #??????????? | | "" = ![!!%%! #??????????? | | "" %[*%!=!%=## #????????? | | # " " ######### # "[ !!"#?? $ #????????? | | # "" "" ""#??????###"" #??? #????????? | | # "" "" ##????????#"" "#????####????????? | | # X"#????????#" "#????????????????? | | # ##????????#"" "#??########??????? | | ###### ################"" "#? "??????? | | ""?""""""??""""""""""""""" %["## ""??????? | | """""""""""""" """"" """"" !%= """"?????????? | | ! [!;# "##??????????? | | = ["%#? "#???????????? | | *!* ;#??"????????????? | | j%%[##???????????????? | | ! @ =%%! ; ????????? | | """""""""" """"""""" " """""" ##???????????????? | | ###???###? ???######## ###### #????????????????? | | ?????????????????# #?" !]#????????????????? | | ?????????????????## ##?# !!#????????????????? | | ?????????????????#"! "#?# [#????????????????? | | ?????????????????#"! !"#?" !*#????????????????? | | ?????????????????#" !"#?# =%#????????????????? | | ?????????????????#"! = "#?# ![????????????????? | | ?????????????????#" !!"#?# ????????????????? | | ?????????????????## X####?# ???????????????? | | ?????????????????#" "#????# ???????????????? | | ?????????????????#"! "????# ??????????????? | | ?????????????????#######????# != ??????????????? | | ????????????????????????????# !%*###?????????????? | | ????????????????????????????# !!##???????????????? | | ????????????????????????????#=%="????????????????? | | ????????????????????????????# ! ?????????????????? | | ???????????????????????????? ?????????????????? | | ???????????????????????????? ?????????????????? | | ????????????????????????????? ?????????????????? | | ?????????????????????????????????????????????????? | | ?????????????????????????????????????????????????? | | ?????????????????????????????????????????????????? | | ?????????????????????????????????????????????????? | +----------------------------------------------------+ Best States ------------- Heat Dissipation 25 Energy Generation 15 Energy Capacity 250 Matter Stores 300 Matter Capacity 300 Sight Range 16 Robot Scan Range 14 Terrain Scan Range 14 Terrain Scan Density 10 Armor Coverage 100 Evasion (%) 55 Recoil Reduction 2 Item Schematics ----------------- Signal Interpreter | -10/Materials | Hacked Robot Schematics ------------------ None Fabricated ------------ Nothing Repaired ---------- Hacking Suite | 80% | -10/Materials Studied --------- None Alien Tech Used ----------------- None Achievements -------------- A Problem For Future Me Civilization 2243 Link The Feds Nice Directions, Buddy Challenges ------------ None Game ------ Seed TowerMultireflexCorpse Manual? 0 Play Time 00:39:08 Cumulative 37.7 hours Start 2025.10.26 @ 11:30:30 End 2025.10.26 @ 13:03:33 Sessions 1 Manual Loads 0 Difficulty Rogue Special Mode None Game No. 30 Rogue 30 Adventurer 0 Explorer 0 Win Type - Total 0 Types 0/0/0/0/0/0/0/0/0/0 Lore% 22 Gallery% 29 Achievement% 20 Wizard Run 0 Options --------- Layout 1 ASCII 0 Keyboard 1 Movement Vi Keybinds 0 Fullscreen 2 Font 32/SmallcapsGlow Map View 50x35 Zoom Use 0% Tactical HUD 1 Map Filters NONE Filters NONE Steam 1 RUN: 66fec3fc-f8f4-4ab1-bd42-924fb1acbf5c